Cogmind - Beta 16 @@@ ROGUE MODE // 2026.01.17 @ 21:37:09 // Winter2019/RPGLIKE Player: Gallgagger Result: Self-destructed Performance ------------- Evolutions (4) 2000 Regions Visited (12) 2400 Robots Destroyed (677) 3385 Value Destroyed (27905) 27905 Prototype IDs (29) 580 Alien Tech Used (0) 0 Bonus (22755) 22755 TOTAL SCORE: 59025 Bonus ------- Triggered High Security 2500 High Alert Combat Kills 19052 Follower Combat Kills 36 Destroyed Unchained 2000 Entered Garrisons 200 Aligned with FarCom 300 Friendly Fire -1333 Cogmind --------- Core Integrity 600/600 Matter 790/800 Energy 598/600 System Corruption 0% Temperature Cool (6) Movement Flying (34) Location -6/Factory Parts ------- > --- POWER (2) -------- Enhanced Fission Core Enhanced Fission Core > --- PROPULSION (6) --- Cooled VTOL Module Cooled VTOL Module Flying Fortress v7 > --- UTILITY (8) ------ Advanced Matter Compressor Experimental Sensor Array Advanced Signal Interpreter Experimental Armor Integrity Analyzer Improved Kinecellerator Experimental Weapon Cycler Graphene Brace System Restoration Module > --- WEAPON (5) ------- XL Autogun Array DW-4LL's Slamshotty > --- INVENTORY (4) ---- Protomatter-92 Experimental Heat Sink Gravity Neutralizer Peak State ------------ > --- POWER ------------ Enhanced Fission Core Enhanced Fission Core > --- PROPULSION ------- Cooled VTOL Module Cooled VTOL Module Flying Fortress v7 > --- UTILITY ---------- Experimental Sensor Array Advanced Signal Interpreter Zeronet Interface Experimental Armor Integrity Analyzer Improved Kinecellerator Experimental Weapon Cycler Graphene Brace System Restoration Module > --- WEAPON ----------- XL Autogun Array DW-4LL's Slamshotty > --- INVENTORY -------- Protomatter Experimental Heat Sink Advanced Matter Compressor Gravity Neutralizer [Rating: 168] Favorites ----------- Power Enhanced Fission Core Engine Ion Engine Power Core Enhanced Fission Core Propulsion Improved VTOL Module Wheel Wheel Hover Unit Hover Unit Flight Unit Improved VTOL Module Utility Experimental Sensor Array Device Experimental Sensor Array Storage Advanced Matter Compressor Processor Improved Armor Integrity Analyzer Protection Improved Propulsion Shielding Weapon XL Autogun Array Energy Gun Small Laser Energy Cannon Neutron Cannon Ballistic Gun XL Autogun Array Launcher Mini Smartbomb Launcher Impact Weapon Thunder Hammer Slashing Weapon Molecular Scythe Piercing Weapon Plasma Lance Build | -11 -10 -10 -10 -9 -8 -8 -8 -7 -7 -7 -7 -6 ------- Run | Yrd Mat Min Exi Min Mat Gar Mat Fac Was Fac Sto Fac Slots Evolved 17 | 3 4 . 1 2 3 1 . 2 . 1 . . Power 1 | . . . . . . . . 1 . . . . Propulsion 5 | 1 2 . . 1 1 . . . . . . . Utility 7 | 1 . . 1 1 2 1 . . . 1 . . Weapon 4 | 1 2 . . . . . . 1 . . . . Parts Attached 68 | 8 10 1 8 3 5 1 5 8 . 13 6 . Power 8 | 1 2 . 2 . . . . 1 . 2 . . Engine 2 | 1 1 . . . . . . . . . . . Core 6 | . 1 . 2 . . . . 1 . 2 . . Reactor . | . . . . . . . . . . . . . Propulsion 15 | 3 4 . 1 1 1 . 3 . . 1 1 . Treads . | . . . . . . . . . . . . . Leg . | . . . . . . . . . . . . . Wheel 3 | 3 . . . . . . . . . . . . Hover 4 | . 4 . . . . . . . . . . . Flight 8 | . . . 1 1 1 . 3 . . 1 1 . Utility 29 | 2 . 1 4 2 4 1 2 1 . 8 4 . Device 20 | 2 . . 3 . 3 1 2 1 . 6 2 . Storage 2 | . . . . . . . . . . 1 1 . Processor 4 | . . . . 1 1 . . . . 1 1 . Hackware . | . . . . . . . . . . . . . Protection 3 | . . 1 1 1 . . . . . . . . Artifact . | . . . . . . . . . . . . . Weapon 16 | 2 4 . 1 . . . . 6 . 2 1 . Energy Gun 7 | 2 4 . . . . . . 1 . . . . Energy Cannon 1 | . . . . . . . . 1 . . . . Ballistic Gun 2 | . . . 1 . . . . . . . 1 . Ballistic Cannon . | . . . . . . . . . . . . . Launcher 1 | . . . . . . . . . . 1 . . Special Weapon . | . . . . . . . . . . . . . Impact Weapon 3 | . . . . . . . . 3 . . . . Slashing Weapon 1 | . . . . . . . . 1 . . . . Piercing Weapon 1 | . . . . . . . . . . 1 . . Special Melee Weapon . | . . . . . . . . . . . . . Unidentified Prototypes 25 | . . . 5 . . 1 1 6 . 7 5 . Parts Lost 3 | . 1 . 1 . . . . . . . . 1 Power 2 | . 1 . 1 . . . . . . . . . Propulsion . | . . . . . . . . . . . . . Utility 1 | . . . . . . . . . . . . 1 Weapon . | . . . . . . . . . . . . . Highest Loss Streak 1 | . 1 . 1 . . . . . . . . 1 To Critical Strikes 1 | . . . 1 . . . . . . . . . Average Backups 2 | . . . 1 2 2 1 1 2 2 2 3 2 Power . | . . . . . . . . . . . . . Propulsion . | . . . . . . . . . . . . . Utility 2 | . . . 1 2 2 1 1 2 2 2 3 2 Weapon . | . . . . . . . . . . . . . Tool/Special . | . . . . . . . . . . . . . Unused Backups 7 | . . . 6 . . . . . . . 1 . Power 3 | . . . 3 . . . . . . . . . Propulsion . | . . . . . . . . . . . . . Utility 4 | . . . 3 . . . . . . . 1 . Weapon . | . . . . . . . . . . . . . Tool/Special . | . . . . . . . . . . . . . Average Slot Usage (%) 70 | . 98 100 55 53 57 64 66 68 70 69 71 71 Engine 1 | . 12 9 3 . . . . . . . . . Core 7 | . 1 . 4 7 6 5 5 9 10 9 9 9 Hover 3 | . 20 36 3 . . . . . . . . . Flight 12 | . . . 7 13 13 16 16 15 15 14 14 14 Device 24 | . 27 15 12 14 22 24 27 25 25 24 27 24 Processor 7 | . . . . 1 6 11 11 10 10 9 9 9 Energy Gun 4 | . 27 36 4 . . . . . . . . . Ballistic Gun 5 | . . . 7 7 6 5 5 5 5 4 7 9 Impact Weapon 1 | . . . . . . . . 1 5 4 . . Peak Build Rating 168 | 9 13 14 94 102 110 118 125 136 136 153 168 168 Average Rating 116 | 5 9 13 79 96 104 112 122 129 135 140 164 163 On Entrance 90 | . 9 13 14 93 102 110 118 122 136 132 153 168 Avg Prop Armor Cover (%) 6 | . 13 6 5 . . . 1 . . . . . Naked Turns . | . . . . . . . . . . . . . Heaviest Build 65 | 9 12 12 43 44 44 45 46 58 54 61 65 65 Greatest Support 82 | 31 29 23 55 59 63 63 65 82 70 70 74 70 Greatest Overweight (x) 2 | . . . 2 . . . . . . 2 . . Average Overweight (x) . | . . . . . . . . . . . . . Largest Inventory Capacity 4 | 2 2 2 3 3 3 3 3 3 3 4 4 4 Average Capacity 3 | 2 2 2 2 3 3 3 3 3 3 3 4 4 Most Carried 4 | 1 2 2 3 3 3 3 3 3 3 4 4 4 Average Carried 3 | . . . 1 2 2 2 3 3 3 3 3 3 Final Capacity 4 | 2 2 2 3 3 3 3 3 3 3 4 4 4 Final Carried 4 | 1 . 2 3 2 3 3 3 3 3 4 4 3 Class Distribution -------------------- 35% | Scavenger-Gunner 32% | Gunner 11% | Scavenger-Scout 9% | Mutant 4% | Scout 3% | Commander-Scout Dominant Class ---------------- Mutant | -10/Materials Scavenger-Gunner | -10/Mines Gunner | -10/Exiles Scavenger-Gunner | -9/Mines Scavenger-Gunner | -8/Materials Scavenger-Gunner | -8/Garrison Scavenger-Gunner | -8/Materials Gunner | -7/Factory Scavenger-Gunner | -7/Waste Gunner | -7/Factory Scavenger-Scout | -7/Storage Commander-Scout | -6/Factory Resources | -11 -10 -10 -10 -9 -8 -8 -8 -7 -7 -7 -7 -6 ----------- Run | Yrd Mat Min Exi Min Mat Gar Mat Fac Was Fac Sto Fac Matter Collected 18834 | 290 67 99 1117 570 1440 650 1870 1596 433 6371 4331 . Remotely . | . . . . . . . . . . . . . Salvage Created 27226 | 75 1078 188 469 976 2375 1022 4260 2050 1487 8060 5186 . Parts 1617 | 7 74 12 58 52 158 69 221 129 33 488 316 . Haulers Intercepted 20 | . . . . . 4 . 4 1 . 7 4 . Recyclers Shooed 11 | 1 2 . . 1 . . 1 . . 4 2 . Parts Field Recycled . | . . . . . . . . . . . . . Retrieved Matter . | . . . . . . . . . . . . . Parts Self-Destructed . | . . . . . . . . . . . . . Prevented . | . . . . . . . . . . . . . Parts Restored . | . . . . . . . . . . . . . Kills | -11 -10 -10 -10 -9 -8 -8 -8 -7 -7 -7 -7 -6 ------- Run | Yrd Mat Min Exi Min Mat Gar Mat Fac Was Fac Sto Fac Combat Hostiles Destroyed 526 | . 34 5 4 18 52 29 86 35 6 153 104 . Guns 507 | . 34 5 4 16 52 29 86 24 6 149 102 . AOE 18 | . . . . 2 . . . 11 . 4 1 . Classes Destroyed 25 | 2 5 . 3 . 6 2 1 3 1 1 1 . Worker 38 | . 1 . . . 3 . 1 8 . 22 3 . Builder 27 | . 1 . . 1 . . 3 13 . 8 1 . Tunneler 6 | 1 . . . . . . . 1 . 4 . . Hauler 20 | . . . . . 4 . 4 1 . 7 4 . Recycler 8 | 1 . . . 3 . . . . . 2 2 . Carrier 1 | . . . . . . . . 1 . . . . Mechanic 11 | . . . . . . . . 3 . 6 2 . Operator 5 | . . . . . 1 . 2 . . 1 1 . Turret 1 | . . . 1 . . . . . . . . . Watcher 25 | . 1 . . . 3 1 5 5 . 8 2 . Swarmer 60 | . 3 3 . 9 13 12 7 2 . 11 . . Cutter 8 | . . . . . . . . . . 8 . . Grunt 219 | . 31 2 . 10 25 8 47 10 . 52 34 . Brawler 25 | . . . . . 1 . 4 1 . 14 5 . Duelist 26 | . . . . . . 2 4 2 . 11 7 . Protector 22 | . . . . . . . 4 2 . 6 10 . Sentry 66 | . . . . . 10 2 17 7 . 16 14 . Demolisher 3 | . . . . . . . . . . . 3 . Specialist 10 | . . . . . . 3 . 1 . 1 5 . Hunter 35 | . . . . . 2 2 2 3 . 16 10 . Programmer 33 | . . . . . . . . 6 . 14 13 . Heavy 7 | . . . . . 1 . 1 1 . 4 . . Compactor 6 | . . . . . . . . . 6 . . . Zionite 8 | . . . 8 . . . . . . . . . Assembled 3 | . . . 3 . . . . . . . . . Thug 3 | . . 1 . 2 . . . . . . . . Best Kill Streak 43 | 2 12 3 11 5 17 9 23 35 6 43 25 . Combat Bots Only 24 | . 12 3 3 3 15 9 23 11 6 15 24 . Max Kills in Single Turn 14 | 1 1 2 1 3 3 2 2 14 1 4 3 . Gunslinging 1 | . . 1 . . . . . . . . . . Exploded 6 | . . . . 2 . . . 6 . 3 1 . Melee . | . . . . . . . . . . . . . Uniques/NPCs Destroyed 7 | . . . 4 . . . . . . . 3 . 8R-AWN (-10/Exiles) EX-BIN (-10/Exiles) EX-DEC (-10/Exiles) EX-HEX (-10/Exiles) DW-4LL (-7/Storage) CL-0N3 (-7/Storage) 01-MTF (-7/Storage) Combat | -11 -10 -10 -10 -9 -8 -8 -8 -7 -7 -7 -7 -6 -------- Run | Yrd Mat Min Exi Min Mat Gar Mat Fac Was Fac Sto Fac Hostile Shots Fired 701 | . 139 10 17 10 43 39 56 90 . 178 119 . Missed 309 | . 31 2 4 5 16 14 26 54 . 95 62 . Hits 392 | . 108 8 13 5 27 25 30 36 . 83 57 . Melee 3 | . . . . . . . 1 . . 1 1 . Projectile 389 | . 108 8 13 5 27 25 29 36 . 82 56 . AOE 6 | . . . . . . . . . . 5 1 . Critical Strikes 18 | . . . 6 . 3 . 2 2 . 4 1 . Actively Blocked 6 | . . . 1 . . . . . . 4 1 . Part Disruptions 1 | . . . . . . . . . . 1 . . Damage Taken 5829 | . 1338 120 292 89 377 302 486 454 . 1248 1123 . Core 4546 | . 1089 91 178 48 300 232 378 355 . 987 888 . Absorbed by Shields 8 | . . . . . . . . . . 8 . . Redirected to Core 4022 | . 794 91 178 38 260 232 364 340 . 900 825 . Redirected to Shielding 44 | . . . 30 14 . . . . . . . . Regen/Repaired (Parts) 37 | . 37 . . . . . . . . . . . Core Remaining (%) 99 | 100 . . . 99 . . 100 . . . 100 . Volleys Fired 1358 | 7 106 7 55 36 114 71 174 131 27 405 225 . Largest 4 | 2 2 4 1 1 1 1 1 1 1 1 2 . Hottest 160 | 80 80 160 60 60 60 60 60 60 60 60 90 . Shots Fired 1505 | 14 212 29 55 36 114 71 174 131 27 405 237 . Gun 1505 | 14 212 29 55 36 114 71 174 131 27 405 237 . Cannon . | . . . . . . . . . . . . . Launcher . | . . . . . . . . . . . . . Special . | . . . . . . . . . . . . . Kinetic 1238 | . . . 55 36 114 71 174 131 27 405 225 . Thermal 255 | 14 212 29 . . . . . . . . . . Explosive . | . . . . . . . . . . . . . Electromagnetic . | . . . . . . . . . . . . . Impact 12 | . . . . . . . . . . . 12 . Robot Hit Streak 38 | 5 23 7 14 10 13 12 38 20 38 27 23 . Robot Miss Streak 7 | 5 2 1 5 4 3 7 5 3 2 5 4 . Penetration Max . | . . . . . . . . . . . . . Secondary Targets 8 | . 5 1 . . . . . . . . 2 . Max Gunslinging Chain 1 | . 1 1 . . . . . . . . 1 . Shots Hit Robots 1164 | 7 163 19 51 35 96 50 148 64 27 299 205 . Core Hits 1109 | 3 75 9 34 29 91 55 149 94 18 324 228 . Critical Kills 1 | . . . . . . . . . . . 1 . Critical Parts Destroyed 3 | . . . . . . . . . . 3 . . Critical Strikes 4 | . . . . . . . . . . 3 1 . Destroy 1 | . . . . . . . . . . . 1 . Smash 3 | . . . . . . . . . . 3 . . Melee Attacks 47 | . . . . . . . . 4 . 43 . . Impact 47 | . . . . . . . . 4 . 43 . . Slashing . | . . . . . . . . . . . . . Piercing . | . . . . . . . . . . . . . Sneak Attacks 11 | . . . . . . . . 2 . 9 . . Combat Hostiles . | . . . . . . . . . . . . . Follow-up Attacks . | . . . . . . . . . . . . . Damage Inflicted 81669 | 79 2009 227 2689 1928 5800 3199 10941 9076 2638 25177 17906 . Guns 73713 | 79 1911 227 2689 1825 5800 3199 10748 4638 2638 22305 17654 . Cannons . | . . . . . . . . . . . . . Explosions 6577 | . 95 . . 103 . . 193 4167 . 1767 252 . Melee 1376 | . . . . . . . . 271 . 1105 . . Ramming 3 | . 3 . . . . . . . . . . . Kinetic 70654 | . . . 2689 1825 5800 3199 10748 4638 2638 22305 16812 . Thermal 3464 | 79 1911 227 . 103 . . . . . 1144 . . Explosive 5177 | . 95 . . . . . 193 4167 . 470 252 . Electromagnetic 153 | . . . . . . . . . . 153 . . Impact 2218 | . . . . . . . . 271 . 1105 842 . Slashing . | . . . . . . . . . . . . . Piercing . | . . . . . . . . . . . . . Highest Corruption 7 | . 2 2 2 . . . 4 2 7 3 . . Average Corruption 2 | . 2 2 1 . . . 3 1 5 2 . . Corruption Purged 24 | . . . 2 . . . 4 4 6 8 . . Corruption Blocked . | . . . . . . . . . . . . . Effects 26 | . 2 4 7 . . . 2 1 2 8 . . Message Errors 7 | . 1 . 2 . . . . . 1 3 . . Matter Fused 7 | . . 1 3 . . . . . 1 2 . . Heat Flow Errors 1 | . . 1 . . . . . . . . . . Energy Discharges 3 | . 1 . 1 . . . . 1 . . . . Parts Fused 1 | . . 1 . . . . . . . . . . Data Loss (minor) 4 | . . . 1 . . . 1 . . 2 . . Data Loss (major) 1 | . . . . . . . 1 . . . . . Misfires 1 | . . 1 . . . . . . . . . . Alerts 1 | . . . . . . . . . . 1 . . Overload Shots . | . . . . . . . . . . . . . Overflow Damage 1453 | . . . . . . . 12 349 . 1092 . . Projectiles . | . . . . . . . . . . . . . Explosions 507 | . . . . . . . 12 193 . 302 . . Melee 946 | . . . . . . . . 156 . 790 . . Knockbacks 11 | . . . . . . . . 1 . 4 6 . Impact 10 | . . . . . . . . 1 . 4 5 . Kinetic . | . . . . . . . . . . . . . Secondary 1 | . . . . . . . . . . . 1 . Self-Inflicted Damage 409 | . 141 . . 19 . . . 79 . 70 100 . Shots 9 | . 2 . . 1 . . . 2 . 1 3 . Rammed 1 | . 1 . . . . . . . . . . . Targets Rammed 1 | . 1 . . . . . . . . . . . Kicked . | . . . . . . . . . . . . . Crushed . | . . . . . . . . . . . . . Highest Temperature 346 | . 2 245 346 87 49 35 55 32 23 32 27 . Average Temperature 46 | . 2 98 99 28 18 18 21 25 23 20 18 . Received Heat Transfer 1314 | . 543 24 . . 162 63 198 60 . 111 153 . Effects 2 | . . . 2 . . . . . . . . . Interference 2 | . . . 2 . . . . . . . . . Siege Activations . | . . . . . . . . . . . . . Martial Activations . | . . . . . . . . . . . . . Shielding Activations . | . . . . . . . . . . . . . Robots Disrupted . | . . . . . . . . . . . . . Combat Hostiles . | . . . . . . . . . . . . . Robots Corrupted 7 | . . . . . . . . 1 . 5 1 . Combat Hostiles 1 | . . . . . . . . . . . 1 . Parts Fried 9 | . . . . . . . . . . 9 . . Impact Corruptions 29 | . . . . . . . . 4 . 23 2 . Robots Melted . | . . . . . . . . . . . . . Combat Hostiles . | . . . . . . . . . . . . . Parts Melted 8 | . 8 . . . . . . . . . . . Heat Transferred 5925 | 175 4175 475 . 100 . . . . . 1000 . . Parts Sabotaged . | . . . . . . . . . . . . . Parts Stolen . | . . . . . . . . . . . . . Parts Stripped . | . . . . . . . . . . . . . Power Chain Reactions 1 | . . . . . . . . . . 1 . . Alert | -11 -10 -10 -10 -9 -8 -8 -8 -7 -7 -7 -7 -6 ------- Run | Yrd Mat Min Exi Min Mat Gar Mat Fac Was Fac Sto Fac Maximum Alert Level 5 | . 2 1 . 1 5 5 5 5 4 5 5 5 Low Security (%) 4 | 100 21 23 . 9 5 . . . . . . . Level 1 11 | . 43 76 . 90 9 . . . . . . . Level 2 6 | . 35 . . . 20 . . . . 4 . . Level 3 9 | . . . . . 34 5 2 . 81 22 . . Level 4 20 | . . . . . 18 31 19 54 18 27 . . Level 5 37 | . . . . . 12 62 32 45 . 30 84 83 High Security 10 | . . . . . . . 45 . . 14 15 16 Max Security . | . . . . . . . . . . . . . Sterilizations 4 | . . . . . 1 . 1 . . 1 1 . Peak Influence 6784 | 5 602 278 . 366 1684 2159 3433 2424 1100 6784 5474 2490 Initial 3086 | . . 228 . . 117 1090 1052 1561 1100 746 3086 2490 Average 2108 | . 316 224 . 285 903 1693 2341 1742 1087 2672 3785 2476 Influence Increases 20013 | 10 1096 120 . 562 1984 1069 2635 1939 16 7524 3028 30 Destroy 0b10 Robot/C 9860 | . 680 100 . 360 1040 580 1640 680 . 2940 1820 20 Destroy 0b10 Robot/NC 815 | 10 15 . . 20 55 10 95 165 . 320 125 . Destroy Leader 2058 | . 152 20 . 60 274 50 348 212 . 600 332 10 Allied During Kill 137 | . . . . . 10 . . . . . 127 . Successful Hack 196 | . . . . . 16 14 . 40 . 102 24 . Select Force Hacks 520 | . 160 . . 50 220 . 90 . . . . . Disable Machine 2985 | . 30 . . 30 90 45 135 450 . 1965 240 . Anti-Garrison Action 400 | . . . . . . 250 . . . 150 . . Destroy Structure 2487 | . 29 . . 42 159 60 252 287 16 1312 330 . Partial Spotted 180 | . 15 . . . 75 . 15 30 . 45 . . Lose Combat Pursuer 375 | . 15 . . . 45 60 60 75 . 90 30 . Influence Decreases 17775 | 10 510 548 158 262 607 587 1361 2948 1626 1806 4338 3014 Entered New Map 12843 | . . 358 158 . 183 587 1107 1872 1576 320 3698 2984 Time Decay 3602 | 10 500 190 . 262 374 . 254 616 50 706 620 20 Lost Part 20 | . 10 . . . . . . . . . . 10 Lost Ally 110 | . . . . . 50 . . 10 . 30 20 . Purge Threat 1200 | . . . . . . . . 450 . 750 . . Squads Dispatched 135 | . 12 . . 2 13 . 18 17 . 51 21 1 Investigation 42 | . 8 . . 2 10 . 8 1 . 10 2 1 Extermination 16 | . . . . . . . . 5 . 7 4 . Reinforcement 22 | . 4 . . . 1 . 2 4 . 10 1 . Assault 40 | . . . . . . . 5 6 . 15 14 . Garrison 15 | . . . . . 2 . 3 1 . 9 . . Intercept . | . . . . . . . . . . . . . Searches Triggered . | . . . . . . . . . . . . . Unchained Authorized 2 | . . . . . . . . . . . 2 . Construction Impeded 3 | . . . . . . . . 2 . 1 . . Haulers Reinforced 1 | . . . . . . . . . . 1 . . Active Scanning Responses . | . . . . . . . . . . . . . Cargo Convoy Interrupts 2 | . . . . . . . . 1 . 1 . . Stealth | -11 -10 -10 -10 -9 -8 -8 -8 -7 -7 -7 -7 -6 --------- Run | Yrd Mat Min Exi Min Mat Gar Mat Fac Was Fac Sto Fac Distress Signals 10 | . . . . . 1 . 2 2 . 4 1 . Communications Jammed . | . . . . . . . . . . . . . Distress Signals . | . . . . . . . . . . . . . Times Spotted 562 | . 50 5 12 13 53 28 85 35 6 159 116 . Peak Tracking Total 15 | . 8 3 9 3 6 5 11 10 3 9 15 . Tactical Retreats 15 | . 1 . . . 2 1 3 2 . 5 1 . Traps | -11 -10 -10 -10 -9 -8 -8 -8 -7 -7 -7 -7 -6 ------- Run | Yrd Mat Min Exi Min Mat Gar Mat Fac Was Fac Sto Fac Traps Triggered 38 | . 6 1 . . 1 6 5 5 . 12 2 . Indirectly 2 | . . . . . . . . . . 2 . . Trap Hack Attempts . | . . . . . . . . . . . . . Triggered . | . . . . . . . . . . . . . Disarmed . | . . . . . . . . . . . . . Reprogrammed . | . . . . . . . . . . . . . Reused . | . . . . . . . . . . . . . Traps Extracted . | . . . . . . . . . . . . . Installed . | . . . . . . . . . . . . . Triggered . | . . . . . . . . . . . . . Machines | -11 -10 -10 -10 -9 -8 -8 -8 -7 -7 -7 -7 -6 ---------- Run | Yrd Mat Min Exi Min Mat Gar Mat Fac Was Fac Sto Fac Machines Disabled 228 | . 2 . 17 2 8 7 12 30 . 132 18 . Max in Single Turn 9 | . 2 . 1 1 1 1 2 9 . 9 2 . Garrison Access 6 | . . . . . . . . 2 . 4 . . Garrison Relay 4 | . . . . . . 4 . . . . . . Machines Repaired . | . . . . . . . . . . . . . Machines Dismantled . | . . . . . . . . . . . . . Machines Sabotaged 5 | . 2 . . 1 2 . . . . . . . Overloaded Fab Kills . | . . . . . . . . . . . . . Hacking | -11 -10 -10 -10 -9 -8 -8 -8 -7 -7 -7 -7 -6 --------- Run | Yrd Mat Min Exi Min Mat Gar Mat Fac Was Fac Sto Fac Machines Accessed 88 | . 7 1 . 2 15 2 8 20 . 21 10 2 Terminals 59 | . 4 . . 1 9 2 3 15 . 13 10 2 Fabricators 6 | . . . . . . . . 2 . 4 . . Repair Stations 5 | . 1 . . . 1 . 2 . . 1 . . Recycling Units 6 | . 2 . . . 2 . 1 1 . . . . Scanalyzers 4 | . . . . . 2 . 2 . . . . . Garrison Access 6 | . . . . . 1 . . 2 . 3 . . Total Hacks 200 | . 13 1 . 3 22 7 13 54 . 61 22 4 Successful 104 | . 9 1 . 2 19 1 7 22 . 34 9 . Failed 96 | . 4 . . 1 3 6 6 32 . 27 13 4 Catastrophic 17 | . . . . . . . . 6 . 5 4 2 Database Lockouts . | . . . . . . . . . . . . . Manual 133 | . 14 . 1 2 17 . 13 41 . 27 14 4 Terminals 154 | . 9 . . 2 15 7 7 42 . 46 22 4 Fabricators 17 | . . . . . . . . 7 . 10 . . Repair Stations 5 | . 1 . . . 1 . 2 . . 1 . . Recycling Units 9 | . 3 . . . 2 . 1 3 . . . . Scanalyzers 5 | . . . . . 2 . 3 . . . . . Garrison Access 8 | . . . . . 2 . . 2 . 4 . . Terminal Hacks 34 | . 2 1 . 1 3 1 . 8 . 15 3 . Part Schematic 2 | . . . . . . . . . . 2 . . Robot Analysis 6 | . 2 . . . 2 . . . . 2 . . Prototype ID Bank 2 | . . . . . 1 . . . . 1 . . Open Door 5 | . . 1 . 1 . . . . . . 3 . Branch Access Points 1 | . . . . . . . . 1 . . . . Emergency Access Points 2 | . . . . . . 1 . 1 . . . . Machine Index 1 | . . . . . . . . 1 . . . . Alert Level 4 | . . . . . . . . 1 . 3 . . Unreport Threat 8 | . . . . . . . . 3 . 5 . . Locate Traps 1 | . . . . . . . . 1 . . . . Recall Investigation 1 | . . . . . . . . . . 1 . . Recall Reinforcements 1 | . . . . . . . . . . 1 . . Fabricator Hacks 6 | . . . . . . . . . . 6 . . Load Schematic 3 | . . . . . . . . . . 3 . . Build 3 | . . . . . . . . . . 3 . . Repair Station Hacks . | . . . . . . . . . . . . . Recycling Unit Hacks 1 | . . . . . . . . 1 . . . . Retrieve Matter 1 | . . . . . . . . 1 . . . . Scanalyzer . | . . . . . . . . . . . . . Garrison Access Hacks 6 | . . . . . 1 . . 2 . 3 . . Unlock Access 1 | . . . . . 1 . . . . . . . Seal Access 5 | . . . . . . . . 2 . 3 . . Unauthorized Hacks 57 | . 7 . . 1 15 . 7 11 . 10 6 . Terminals 39 | . 4 . . 1 10 . 2 8 . 8 6 . Assimilate 3 | . . . . . 1 . . 1 . 1 . . Botnet 24 | . 1 . . . 4 . . 7 . 6 6 . Sabotage 9 | . 3 . . 1 3 . 1 . . 1 . . Search 3 | . . . . . 2 . 1 . . . . . Fabricators 4 | . . . . . . . . 3 . 1 . . Prioritize 1 | . . . . . . . . 1 . . . . Liberate 1 | . . . . . . . . 1 . . . . Haulers 2 | . . . . . . . . 1 . 1 . . Repair Stations 5 | . 1 . . . 1 . 2 . . 1 . . Patch 5 | . 1 . . . 1 . 2 . . 1 . . Recycling Units 5 | . 2 . . . 2 . 1 . . . . . Tunnel 5 | . 2 . . . 2 . 1 . . . . . Scanalyzers 4 | . . . . . 2 . 2 . . . . . Extract 4 | . . . . . 2 . 2 . . . . . Garrison Access . | . . . . . . . . . . . . . Data Cores Recovered 3 | . . . . . 1 . 1 . . 1 . . Used . | . . . . . . . . . . . . . Hacking Detections 54 | . 4 . . 1 4 2 2 17 . 16 6 2 Full Trace Events 11 | . . . . . . 1 1 1 . 7 . 1 Feedback Events . | . . . . . . . . . . . . . Feedback Blocked . | . . . . . . . . . . . . . Robot Schematics Acquired 54 | . . . . . . . . . . . 54 . Robots Built 2 | . . . . . . . . . . 2 . . Authchips . | . . . . . . . . . . . . . Time 81 | . . . . . . . . . . 81 . . Total Robot Build Rating 2 | . . . . . . . . . . 2 . . Part Schematics Acquired 9 | . . . . . 4 . 3 . . 2 . . Parts Built 4 | . . . . . . . . . . 4 . . Authchips . | . . . . . . . . . . . . . Time 95 | . . . . . . . . . . 95 . . Total Part Build Rating 20 | . . . . . . . . . . 20 . . Part Studies Acquired . | . . . . . . . . . . . . . Parts Repaired . | . . . . . . . . . . . . . Time . | . . . . . . . . . . . . . Parts Recycled . | . . . . . . . . . . . . . Recycled Matter . | . . . . . . . . . . . . . Retrieved Matter . | . . . . . . . . . . . . . Retrieved Components . | . . . . . . . . . . . . . Parts Scanalyzed . | . . . . . . . . . . . . . Part Schematics Acquired . | . . . . . . . . . . . . . Parts Damaged . | . . . . . . . . . . . . . Bothacking | -11 -10 -10 -10 -9 -8 -8 -8 -7 -7 -7 -7 -6 ------------ Run | Yrd Mat Min Exi Min Mat Gar Mat Fac Was Fac Sto Fac Used RIF Installer . | . . . . . . . . . . . . . Robots Hacked . | . . . . . . . . . . . . . Non-combat . | . . . . . . . . . . . . . Combat . | . . . . . . . . . . . . . Robot Hacks Applied . | . . . . . . . . . . . . . Relay Couplers Released 6 | . . . . . . 6 . . . . . . Machine Destruction 6 | . . . . . . 6 . . . . . . Fabnet Peak Effective % . | . . . . . . . . . . . . . Robots Rewired . | . . . . . . . . . . . . . Allies Hacked 1 | . . . . . . . . 1 . . . . Hacks Repelled . | . . . . . . . . . . . . . Allies | -11 -10 -10 -10 -9 -8 -8 -8 -7 -7 -7 -7 -6 -------- Run | Yrd Mat Min Exi Min Mat Gar Mat Fac Was Fac Sto Fac Total Allies 19 | . . . . 4 1 . . 1 . 3 10 . Largest Group 10 | . . . . 4 2 . . 1 . 2 10 9 Highest-Rated Group 173 | . . . . 71 24 . . 10 . 20 173 157 Highest-Rated Ally 31 | . . . . 31 16 . . 10 . 10 29 29 Initial Warlord ECA Mod 6 | . . . . . . . 6 5 5 5 5 4 Total Orders 33 | . . . . . 3 . . 2 . 13 15 . STAY 19 | . . . . . 3 . . 1 . 2 13 . FOLLOW 5 | . . . . . . . . 1 . 2 2 . TUNNEL 9 | . . . . . . . . . . 9 . . Ally Attacks 20 | . . . . . 2 . . . . . 4 14 Total Damage 195 | . . . . . 10 . . . . . 34 151 Kills 2 | . . . . . . . . . . . 1 1 Allies Corrupted . | . . . . . . . . . . . . . Allies Melted . | . . . . . . . . . . . . . Intel | -11 -10 -10 -10 -9 -8 -8 -8 -7 -7 -7 -7 -6 ------- Run | Yrd Mat Min Exi Min Mat Gar Mat Fac Was Fac Sto Fac Active Infowar (turns) 11616 | 40 1387 391 267 . . 109 1029 2068 108 3667 2485 65 Sensors 9531 | . . . . . . 109 1029 2068 108 3667 2485 65 Zeronet 1601 | . . . . . . . . . . . 1584 17 Terrain 1718 | 35 1387 296 . . . . . . . . . . Seismic 2085 | 40 1387 391 267 . . . . . . . . . Robot Analysis Total 102 | . 2 . . . 2 . . . . 2 96 . Derelict Logs Recovered 6 | . . 3 . 3 . . . . . . . . Drone Launches . | . . . . . . . . . . . . . Drone Recoveries . | . . . . . . . . . . . . . Exploration | -11 -10 -10 -10 -9 -8 -8 -8 -7 -7 -7 -7 -6 ------------- Run | Yrd Mat Min Exi Min Mat Gar Mat Fac Was Fac Sto Fac Turns Passed 13761 | 77 1387 391 684 570 876 354 1029 2068 108 3667 2485 65 Spaces Moved 19034 | 50 995 630 842 849 1574 636 1265 3669 172 5888 2276 188 Core 7 | 5 . . 2 . . . . . . . . . Treads . | . . . . . . . . . . . . . Legs . | . . . . . . . . . . . . . Wheels 209 | 45 164 . . . . . . . . . . . Hover 1574 | . 831 630 113 . . . . . . . . . Flight 17244 | . . . 727 849 1574 636 1265 3669 172 5888 2276 188 Fastest Speed 26 | 50 48 52 50 42 37 37 34 34 34 34 26 34 Average Speed 38 | 86 59 54 50 42 40 37 37 34 34 34 33 34 Slowest Speed 172 | 100 80 60 150 50 42 37 50 34 34 172 34 34 Overloaded Moves 42 | . . . . . . . . . . . 42 . Propulsion Burnouts . | . . . . . . . . . . . . . Robots Hopped 161 | . . . 2 8 30 1 16 46 . 36 21 1 Potential Cave-ins 31 | . . . . . 4 . . 10 . 16 1 . Cave-ins Triggered . | . . . . . . . . . . . . . Exploration Rate (%) 76 | 4 95 99 90 98 95 72 92 79 81 92 97 6 Regions Visited 12 Branch Regions 4 Pre-discovered Areas 7 | . 2 2 . . 2 . 1 . . . . . Known Exits Taken 4 | . . . . . 1 . 1 . . 1 1 . Unknown Exits Taken 5 | 1 1 1 1 1 . . . . . . . . Scrap Searched 2 | . . 1 . 1 . . . . . . . . Spaces Dug 569 | . . . . . 20 . 3 173 . 307 66 . Terrain Destroyed 2678 | . 30 . 27 48 176 . 279 389 16 1385 328 . Melee 6 | . . . . . . . . . . 6 . . Projectile 1514 | . . . 27 38 176 . 212 308 16 499 238 . AOE 1158 | . 30 . . 10 . . 67 81 . 880 90 . Terrain Rammed . | . . . . . . . . . . . . . Walls Destroyed . | . . . . . . . . . . . . . Machines Disabled . | . . . . . . . . . . . . . Actions | -11 -10 -10 -10 -9 -8 -8 -8 -7 -7 -7 -7 -6 --------- Run | Yrd Mat Min Exi Min Mat Gar Mat Fac Was Fac Sto Fac Total 25317 | 65 1570 660 1108 1055 1801 770 1848 4462 230 7533 4027 188 Wait 4538 | . 401 17 174 156 103 17 383 666 26 1125 1470 . Move 18714 | 49 994 629 837 832 1516 633 1234 3583 171 5817 2233 186 Hop 148 | . . . 2 8 27 1 14 40 . 34 21 1 Pick Up 25 | . 4 2 9 1 2 1 2 . 1 1 2 . Fast Attach 35 | 7 10 . 3 1 4 . 2 6 . 2 . . Attach 5 | . . . 1 1 1 1 . . . . . 1 Detach . | . . . . . . . . . . . . . Swap 52 | 2 6 1 7 1 1 . 4 7 . 16 7 . Drop 32 | . 7 . 15 1 1 . 3 . 1 1 3 . Fire 1358 | 7 106 7 55 36 114 71 174 131 27 405 225 . Melee 47 | . . . . . . . . 4 . 43 . . Ram 1 | . 1 . . . . . . . . . . . Kick . | . . . . . . . . . . . . . Crush . | . . . . . . . . . . . . . Escape Stasis 44 | . . . . . . 24 . 4 . 16 . . Rewire 1 | . . . . . . . . . . . 1 . Trap . | . . . . . . . . . . . . . Miscellaneous 317 | . 41 4 5 18 32 22 32 21 4 73 65 . Route ------- -11/Scrapyard -10/Materials (discovered 4 exits: [*Mat x3] / *Min) -10/Mines (discovered 4 exits: [*Mat x2] / *Exi / [*Sub]) -10/Exiles -9/Mines (discovered 2 exits: *Mat x2) -8/Materials (discovered 4 exits: *Fac x3 / Gar) -8/Garrison (discovered 4 exits: *Fac x3 / *Mat) -8/Materials (discovered 3 exits: *Fac x3) -7/Factory (discovered 8 exits: *Fac x4 / *Sto x2 / *Low x2) -7/Waste -7/Factory (discovered 7 exits: *Fac x3 / *Sto x2 / *Low x2) -7/Storage -6/Factory History --------- Turn | Location | Event 1 | -11/Scrapyard | Upgraded with Propulsion slot (x1) 1 | -11/Scrapyard | Upgraded with Utility slot (x1) 1 | -11/Scrapyard | Upgraded with Weapon slot (x1) 13 | -11/Scrapyard | Discovered new exit (range 16) 78 | -11/Scrapyard | Entered Materials 349 | -10/Materials | Core integrity fell below 50% 361 | -10/Materials | Reached level 2 422 | -10/Materials | Destroyed 12 combat bots 454 | -10/Materials | Discovered new exit (range 7) 739 | -10/Materials | Build established: Mutant 770 | -10/Materials | Discovered new exit (range 9) 838 | -10/Materials | Reached level 3 1108 | -10/Materials | Core integrity fell below 20% 1189 | -10/Materials | Discovered new exit (range 6) 1228 | -10/Materials | Discovered new exit (range 16) 1268 | -10/Materials | Reached level 4 1373 | -10/Materials | Upgraded with Propulsion slot (x2) 1373 | -10/Materials | Upgraded with Weapon slot (x2) 1465 | -10/Materials | Entered Mines 1481 | -10/Mines | A weapon hastily lodged in a ceiling crevice suddenly fell to the ground 1504 | -10/Mines | Learned location of Storage (-7) 1611 | -10/Mines | Reached level 5 1692 | -10/Mines | Found a damaged Exp. Sensor Array with a note attached 1695 | -10/Mines | Found Prototype Device 1698 | -10/Mines | Learned Materials security intel 1700 | -10/Mines | Learned Materials terminal intel 1704 | -10/Mines | Build established: Scavenger-Gunner 1726 | -10/Mines | Discovered new exit (range 9) 1745 | -10/Mines | Discovered new exit (range 9) 1753 | -10/Mines | Met a Derelict who couldn't figure out how to use a Trap Extractor 1820 | -10/Mines | Discovered new exit (range 5) 1854 | -10/Mines | Deemed a non-threat by the Exiles lab entrance 1854 | -10/Mines | Discovered new exit (range 5) 1856 | -10/Mines | Entered Exiles 1870 | -10/Exiles | Met 8R-AWN 1878 | -10/Exiles | Met EX-HEX 1892 | -10/Exiles | Met EX-BIN 1899 | -10/Exiles | Aligned with FarCom system 1899 | -10/Exiles | Given EX-Vault access code 1912 | -10/Exiles | Opened EX-Vault 1917 | -10/Exiles | Found Prototype Flight Unit 1917 | -10/Exiles | Identified Flying Fortress v7 1922 | -10/Exiles | Found Prototype Ballistic Gun 1922 | -10/Exiles | Identified XL Autogun Array 1925 | -10/Exiles | Upgraded with Utility slot (x1) 1937 | -10/Exiles | Warned to stay clear of 0b10 Research branches 2010 | -10/Exiles | Met EX-DEC 2019 | -10/Exiles | Attacked by the Exiles 2121 | -10/Exiles | Destroyed 8R-AWN 2283 | -10/Exiles | Destroyed EX-BIN 2297 | -10/Exiles | Destroyed EX-DEC 2306 | -10/Exiles | Destroyed EX-HEX 2327 | -10/Exiles | Found Prototype Device 2327 | -10/Exiles | Identified System Purifier 2463 | -10/Exiles | Build established: Gunner 2534 | -10/Exiles | Discovered new exit (range 14) 2540 | -10/Exiles | Stole two prototypes: XL Autogun Array, Flying Fortress v7 2540 | -10/Exiles | Entered Mines 2564 | -9/Mines | Reached level 6 2585 | -9/Mines | Discovered new exit (range 5) 2604 | -9/Mines | Upgraded with Propulsion slot (x1) 2700 | -9/Mines | Learned 2 Materials zone layouts 2712 | -9/Mines | Learned 2 Materials zone layouts 2748 | -9/Mines | Met a Derelict shopkeep closing up shop 2845 | -9/Mines | Discovered new exit (range 9) 2884 | -9/Mines | Reached level 7 2905 | -9/Mines | Build established: Scavenger-Gunner 2969 | -9/Mines | Received a Mining Laser from a helpful Derelict 2996 | -9/Mines | Upgraded with Utility slot (x1) 3057 | -9/Mines | Assisted by bots powering up and referring to "LRC-V3" 3110 | -9/Mines | Entered Materials 3110 | -8/Materials | Accompanied by 2 allies 3111 | -8/Materials | Identified exit to Factory 3112 | -8/Materials | Reached level 8 3113 | -8/Materials | Loaded intel: 12 terminal locations 3235 | -8/Materials | Reached level 9 3267 | -8/Materials | Reached level 10 3294 | -8/Materials | Destroyed 15 combat bots 3410 | -8/Materials | Discovered exit to Factory (range 12) 3497 | -8/Materials | Upgraded with Propulsion slot (x1) 3497 | -8/Materials | Upgraded with Utility slot (x1) 3567 | -8/Materials | Reached level 11 3784 | -8/Materials | Reached level 12 3837 | -8/Materials | Garrison activated, responded to threat 3901 | -8/Materials | Destroyed 9 combat bots 3904 | -8/Materials | Sterilization system engaged 3904 | -8/Materials | Non-combat units ordered to evacuate 3946 | -8/Materials | Identified exit to Garrison 3967 | -8/Materials | Upgraded with Utility slot (x1) 3986 | -8/Materials | Entered Garrison 4005 | -8/Garrison | Triggered checkpoint 4009 | -8/Garrison | Reached level 13 4010 | -8/Garrison | Garrison Relay disabled 4031 | -8/Garrison | Triggered checkpoint 4078 | -8/Garrison | Triggered checkpoint 4102 | -8/Garrison | Destroyed 9 combat bots 4102 | -8/Garrison | Discovered exit to Factory (range 13) 4108 | -8/Garrison | Triggered checkpoint 4112 | -8/Garrison | Discovered new exit (range 5) 4113 | -8/Garrison | Identified exit to Materials 4138 | -8/Garrison | Destroyed 7 combat bots 4150 | -8/Garrison | Garrison Relay disabled 4154 | -8/Garrison | Triggered checkpoint 4182 | -8/Garrison | Triggered checkpoint 4203 | -8/Garrison | Discovered exit to Factory (range 9) 4208 | -8/Garrison | Triggered checkpoint 4211 | -8/Garrison | Garrison Relay disabled 4231 | -8/Garrison | Upgraded with Utility slot (x1) 4231 | -8/Garrison | Identified Exp. Sensor Array 4270 | -8/Garrison | Discovered exit to Factory (range 11) 4282 | -8/Garrison | Garrison Relay disabled 4284 | -8/Garrison | Triggered checkpoint 4299 | -8/Garrison | Reached level 14 4340 | -8/Garrison | Entered Materials 4438 | -8/Materials | Discovered exit to Factory (range 15) 4457 | -8/Materials | Destroyed 12 combat bots 4528 | -8/Materials | Discovered exit to Factory (range 5) 4740 | -8/Materials | First assault squad dispatched 4826 | -8/Materials | Destroyed 10 combat bots 4844 | -8/Materials | Reached level 15 4876 | -8/Materials | Discovered exit to Factory (range 9) 4899 | -8/Materials | High security lockdown imminent 4920 | -8/Materials | Destroyed 10 combat bots 4979 | -8/Materials | High security lockdown engaged 5020 | -8/Materials | Garrison activated, responded to threat 5032 | -8/Materials | Sterilization system engaged 5032 | -8/Materials | Non-combat units ordered to evacuate 5076 | -8/Materials | Destroyed 23 combat bots 5132 | -8/Materials | Combat units ordered to evacuate 5242 | -8/Materials | Build established: Gunner 5332 | -8/Materials | Ambient heat levels rising (+10) 5369 | -8/Materials | Entered Factory 5370 | -7/Factory | Identified exit to Storage 5371 | -7/Factory | Reached level 16 5375 | -7/Factory | Upgraded with Power slot (x1) 5519 | -7/Factory | Discovered new exit (range 4) 5566 | -7/Factory | Discovered new exit (range 9) 5912 | -7/Factory | Garrison activated, responded to threat 5924 | -7/Factory | Discovered exit to Storage (range 15) 5925 | -7/Factory | Discovered new exit (range 11) 5929 | -7/Factory | Identified exit to Factory 6169 | -7/Factory | First assault squad dispatched 6180 | -7/Factory | Discovered new exit (range 15) 6288 | -7/Factory | Identified exit to Lower Caves 6501 | -7/Factory | Discovered exit to Factory (range 4) 6537 | -7/Factory | Reached level 17 6538 | -7/Factory | Cargo convoy interrupted 6568 | -7/Factory | Destroyed 11 combat bots 6631 | -7/Factory | Upgraded with Weapon slot (x1) 6927 | -7/Factory | Build established: Scavenger-Gunner 7422 | -7/Factory | High security lockdown imminent 7437 | -7/Factory | Manually triggered Chute Trap 7437 | -7/Factory | Sucked down chute 7437 | -7/Factory | Entered Waste 7443 | -7/Waste | Spotted C-40 Crusher 7444 | -7/Waste | Spotted C-40 Crusher 7445 | -7/Waste | Spotted C-40 Crusher 7452 | -7/Waste | EMP discharged 7464 | -7/Waste | Destroyed C-40 Crusher 7465 | -7/Waste | Destroyed C-40 Crusher 7468 | -7/Waste | Destroyed C-40 Crusher 7473 | -7/Waste | Spotted C-40 Crusher 7480 | -7/Waste | Destroyed C-40 Crusher 7481 | -7/Waste | Spotted C-40 Crusher 7483 | -7/Waste | Destroyed C-40 Crusher 7489 | -7/Waste | Spotted C-40 Crusher 7491 | -7/Waste | Destroyed C-40 Crusher 7501 | -7/Waste | Discovered new exit (range 12) 7545 | -7/Waste | Identified exit to Factory 7545 | -7/Waste | Entered Factory 7560 | -7/Factory | Discovered exit to Storage (range 11) 7651 | -7/Factory | Fabricated T-07 Excavator (x2) 7722 | -7/Factory | Discovered exit to Factory (range 15) 7827 | -7/Factory | Discovered exit to Storage (range 15) 7940 | -7/Factory | Reached level 18 7945 | -7/Factory | First assault squad dispatched 7961 | -7/Factory | Discovered exit to Factory (range 15) 8062 | -7/Factory | Fabricated System Restoration Module (x2) 8286 | -7/Factory | Allied Derelicts emerged from ambush trap array 8314 | -7/Factory | Garrison activated, responded to threat 8361 | -7/Factory | Lost 3 allies 8605 | -7/Factory | Cargo convoy interrupted 8621 | -7/Factory | Found Prototype Device 8621 | -7/Factory | Identified Adv. EM Shield 8648 | -7/Factory | Found Prototype Launcher 8648 | -7/Factory | Identified Mni. Smartbomb Launcher 8663 | -7/Factory | Destroyed 13 combat bots 8925 | -7/Factory | Build established: Gunner 9179 | -7/Factory | Discovered exit to Factory (range 8) 9203 | -7/Factory | Discovered exit to Lower Caves (range 15) 9452 | -7/Factory | Garrison activated, responded to threat 9624 | -7/Factory | Destroyed 15 combat bots 9648 | -7/Factory | Reached level 19 9857 | -7/Factory | Fabricated Imp. Kinecellerator (x2) 10636 | -7/Factory | Destroyed 13 combat bots 10663 | -7/Factory | High security lockdown imminent 10668 | -7/Factory | Discovered exit to Lower Caves (range 16) 10691 | -7/Factory | Destroyed 15 combat bots 10743 | -7/Factory | High security lockdown engaged 10799 | -7/Factory | Destroyed 7 combat bots 10819 | -7/Factory | Reached level 20 10837 | -7/Factory | Upgraded with Utility slot (x1) 10847 | -7/Factory | Destroyed 13 combat bots 10872 | -7/Factory | Sterilization system engaged 10872 | -7/Factory | Non-combat units ordered to evacuate 10927 | -7/Factory | Destroyed 10 combat bots 10972 | -7/Factory | Combat units ordered to evacuate 11000 | -7/Factory | Destroyed 11 combat bots 11172 | -7/Factory | Ambient heat levels rising (+10) 11198 | -7/Factory | Found Adv. EM Shield 11212 | -7/Factory | Entered Storage 11257 | -7/Storage | Build established: Scout 11319 | -7/Storage | Discovered exit to Factory (range 18) 11398 | -7/Storage | Unchained authorized (DW-4LL) 11623 | -7/Storage | DW-4LL burst out of a wall 11627 | -7/Storage | Destroyed DW-4LL 11630 | -7/Storage | Found Prototype Device 11630 | -7/Storage | Identified Exp. Weapon Cycler 11632 | -7/Storage | Found Prototype Processor 11632 | -7/Storage | Identified Exp. Armor Integrity Analyzer 11742 | -7/Storage | Destroyed 11 combat bots 11742 | -7/Storage | Met 01-MTF 11765 | -7/Storage | Found Prototype Ballistic Gun 11765 | -7/Storage | Identified DW-4LL's Slamshotty 11861 | -7/Storage | Unchained authorized (CL-0N3) 12012 | -7/Storage | First assault squad dispatched 12086 | -7/Storage | D-63 Destroyer reconstituted as CL-0N3 12109 | -7/Storage | Build established: Scavenger-Scout 12110 | -7/Storage | Destroyed CL-0N3 12111 | -7/Storage | Extracted schematics, analyses from CL-0N3's data core 12112 | -7/Storage | Found Prototype Device 12113 | -7/Storage | Identified Zeronet Interface 12153 | -7/Storage | Destroyed 10 combat bots 13264 | -7/Storage | Destroyed 14 combat bots 13274 | -7/Storage | Assisted by bots powering up and referring to "LRC-V3" 13310 | -7/Storage | High security lockdown imminent 13331 | -7/Storage | Destroyed 7 combat bots 13390 | -7/Storage | High security lockdown engaged 13472 | -7/Storage | Destroyed 01-MTF 13519 | -7/Storage | Destroyed 24 combat bots 13520 | -7/Storage | Sterilization system engaged 13520 | -7/Storage | Non-combat units ordered to evacuate 13578 | -7/Storage | Build established: Commander-Scout 13617 | -7/Storage | Destroyed 24 combat bots 13620 | -7/Storage | Combat units ordered to evacuate 13697 | -7/Storage | Entered Factory 13697 | -6/Factory | Accompanied by 9 allies 13699 | -6/Factory | Reached level 21 13751 | -6/Factory | High security lockdown imminent 13762 | -6/Factory | Self-destructed Last Messages --------------- 13593_ Acquired 30 matter. 13594_ Acquired 15 matter. 13594_ Y-54 Guardian destroyed. 13595_ Acquired 30 matter. 13596_ Acquired 15 matter. 13596_ Y-54 Guardian destroyed. 13597_ Acquired 24 matter. 13603_ Acquired 6 matter. 13620_ ALERT: All combat units evacuate. 13632_ Acquired 15 matter. LOCATION=FACTORY GOAL=ESCAPE 13699_ Reached level 21. 13704_ Connecting with Terminal... 13709_ ALERT: Suspicious activity at Terminal F008. Dispatching Investigation squad. 13714_ "INVALID UC-ID CHECK!" Zeronet Interface fries itself. 13746_ ALERT: All DSF locations entering lockdown mode. 13746_ K-01 Serf cleans the Power Conduit. 13751_ ALERT: High security lockdown imminent, T-100. Map ----- +----------------------------------------------------+ | ???????????#! """ ??# t?? | | ???????????? # ??? | | ???????????????"" """ + ??????? | | ???????????????"" """ # ??????? | | ????????????????" """ ??# ??????A | | ??????????????? ????# #####+######???????? | | ?????????????? ??????# #??????????????????? | | ????????????? ????????# #??????????????????? | | ???????????? ??????????# #??????????????????? | | ????????????????????????# +??????????????????? | | ???????????????#????????# #??????????????????? | | ???????????????# ??????# #??????????????????? | | ????k??????????# "????# #??????????????????? | | ???????????????# "" ??# #??????????????????? | | ???????????????# [ # #??????????????????? | | ???????????????# """ + #??????????????????? | | ???????????????#!] """ # #??????????????????? | | ???????????????#![ ""??# #??????????????????? | | ???????????????#][ ????# #??????????????????? | | ????????????????##??????# #??????????????????? | | ????????????????????????# #??????????????????? | | ????????????????????????# #??????????????????? | | ????????????????????????# +??????????????????? | | ????????????????????????# # ?????????????????? | | ????????????????????????# # ????????????????? | | ????????????????????????#@ #? ???????????????? | | ????????????????????????# u#?"""??????????????? | | ????????????????????????# #??"""?????????????? | | ??????????????R?????????# #??????????????????? | | ????????????????????????+ #??????????????????? | | ????????????????????????# #??????????????????? | | ????????????????????????#k #??????????????????? | | ????????????????????????# #??????????????????? | | ????????????????????????# #??????????????????? | | ????????????????????????# #??????????????????? | | ????????????????????????? #??????????????????? | | ????????????????????????? A #??????????????????? | | ????????????????????????? #??????????????????? | | ????????????????????????? #Y?????????????????? | | ????????????????????????? #??????????????????? | | ????????????????????????? #??????????????????? | | ????????????????????????? ???????????????????? | | ?????????????????????????o ?????????????????????? | | ?????????????????????????????????????????????????? | | ?????????????????????????????????????????????????? | | ?????????????????????????????????????????????????? | | ?????????????????????????????????????????????????? | | ?????????????????????????????????????????????????? | | ?????????????????????????????????????????????????? | | ?????????????????????????????????????????????????? | +----------------------------------------------------+ Best States ------------- Heat Dissipation 129 Energy Generation 42 Energy Capacity 600 Matter Stores 800 Matter Capacity 800 Sight Range 18 Robot Scan Range 38 Terrain Scan Range 16 Terrain Scan Density 10 Additional Mass Support 12 Armor Coverage 225 Resistance: TH 10 Resistance: EM 50 Propulsion Shielding 66 Weapon Cycling 30 Evasion (%) 63 Armor Integrity Analysis 50 Matter Filtering 30 Kinecelleration 40 Offensive Hacking 5 Defensive Hacking 5 Item Schematics ----------------- Enh. Autogun | -8/Materials | Extracted Med. Laser | -8/Materials | Extracted EM Pulse Cannon | -8/Materials | Extracted Nuclear Core | -8/Materials | Extracted Terrain Scan Processor | -8/Materials | Extracted Field Laser | -8/Materials | Extracted Arm. Wheel | -8/Materials | Extracted System Restoration Module | -7/Factory | Hacked Imp. Kinecellerator | -7/Factory | Hacked Robot Schematics ------------------ K-01 Serf | -7/Storage | Archive T-07 Excavator | -7/Storage | Archive A-02 Transporter | -7/Storage | Archive A-15 Conveyor | -7/Storage | Archive R-06 Scavenger | -7/Storage | Archive R-10 Processor | -7/Storage | Archive M-14 Sweeper | -7/Storage | Archive M-22 Extractor | -7/Storage | Archive M-30 Cleanser | -7/Storage | Archive M-13 Machinist | -7/Storage | Archive M-28 Smith | -7/Storage | Archive M-36 Artificer | -7/Storage | Archive O-16 Technician | -7/Storage | Archive O-24 Administrator | -7/Storage | Archive O-32 Director | -7/Storage | Archive W-16 Scout | -7/Storage | Archive W-25 Informer | -7/Storage | Archive W-44 Eye | -7/Storage | Archive S-10 Pest | -7/Storage | Archive S-27 Virus | -7/Storage | Archive S-43 Plague | -7/Storage | Archive G-34 Mercenary | -7/Storage | Archive G-47 Trooper | -7/Storage | Archive G-50 Soldier | -7/Storage | Archive G-67 Veteran | -7/Storage | Archive G-73 Enforcer | -7/Storage | Archive B-36 Bruiser | -7/Storage | Archive B-48 Gladiator | -7/Storage | Archive B-60 Warrior | -7/Storage | Archive B-74 Champion | -7/Storage | Archive L-31 Rogue | -7/Storage | Archive L-41 Fighter | -7/Storage | Archive L-61 Swordsman | -7/Storage | Archive Y-45 Defender | -7/Storage | Archive Y-54 Guardian | -7/Storage | Archive Y-64 Sentinel | -7/Storage | Archive Y-72 Warden | -7/Storage | Archive D-53 Grenadier | -7/Storage | Archive D-63 Destroyer | -7/Storage | Archive D-83 Annihilator | -7/Storage | Archive X-57 Shotgunner | -7/Storage | Archive X-62 Marksman | -7/Storage | Archive X-67 Chaingunner | -7/Storage | Archive X-72 Disruptor | -7/Storage | Archive X-77 Beamer | -7/Storage | Archive X-82 Rainmaker | -7/Storage | Archive X-87 Electro | -7/Storage | Archive H-55 Commando | -7/Storage | Archive H-66 Slayer | -7/Storage | Archive H-77 Assassin | -7/Storage | Archive H-88 Terminator | -7/Storage | Archive P-60 Hacker | -7/Storage | Archive P-70 Sage | -7/Storage | Archive P-80 Master | -7/Storage | Archive Fabricated ------------ T-07 Excavator | x2 | -7/Factory | Preloaded System Restoration Module | x2 | -7/Factory Imp. Kinecellerator | x2 | -7/Factory Repaired ---------- Nothing Studied --------- None Alien Tech Used ----------------- None Achievements -------------- None Challenges ------------ None RPGLIKE | -11 -10 -10 -10 -9 -8 -8 -8 -7 -7 -7 -7 -6 --------- Run | Yrd Mat Min Exi Min Mat Gar Mat Fac Was Fac Sto Fac Levels Raised 20 | . 3 1 . 2 5 2 1 2 . 3 . 1 XP Earned 33193 | 3000 5136 1053 243 3000 8139 1984 2376 2910 52 3823 1055 422 XP Spent 31445 | 2960 3800 . 2160 2950 6290 2000 3785 2900 . 4600 . . Upgrades 61 | 10 4 . 4 5 10 1 14 5 . 8 . . Power Slot 1 | . . . . . . . . 1 . . . . Propulsion Slot 5 | 1 2 . . 1 1 . . . . . . . Utility Slot 7 | 1 . . 1 1 2 1 . . . 1 . . Weapon Slot 4 | 1 2 . . . . . . 1 . . . . Heat Dissipation 17 | 3 . . 1 3 6 . 4 . . . . . Energy Generation 1 | . . . . . . . 1 . . . . . Matter Storage 2 | . . . . . . . . . . 2 . . Mass Support 2 | 1 . . . . . . . 1 . . . . Inventory Capacity 4 | 2 . . 1 . . . . . . 1 . . Sight Range 2 | . . . . . . . . . . 2 . . Sensor Range 9 | . . . . . 1 . 6 . . 2 . . Ranged Accuracy 3 | 1 . . 1 . . . 1 . . . . . Hack Attack % 1 | . . . . . . . . 1 . . . . Hack Defense % 1 | . . . . . . . . 1 . . . . KI Damage % 2 | . . . . . . . 2 . . . . . Protomatter Created 8239 | . 461 66 30 122 700 316 1195 506 180 2683 1980 . Integrity Restored 5815 | . 875 63 90 381 437 404 552 403 87 1272 1251 . Core 4546 | . 869 63 90 381 232 303 378 307 48 987 888 . Parts 1269 | . 6 . . . 205 101 174 96 39 285 363 . Protomatter Decayed 4410 | . . . 13 . 319 3 620 277 88 1847 1243 . Game ------ Seed BoltFortressFacilitator Manual? 1 Play Time 02:32:15 Cumulative 552.6 hours Start 2026.01.16 @ 09:38:48 End 2026.01.17 @ 21:37:09 Sessions 5 Manual Loads 0 Difficulty Rogue Special Mode Winter2019/RPGLIKE Game No. 206 Rogue 52 Adventurer 154 Explorer 0 Win Type - Total 20 Types 4/4/3/3/2/1/0/1/1/1 Lore% 95 Gallery% 88 Achievement% 61 Wizard Run 0 Options --------- Layout 0 ASCII 0 Keyboard 0 Movement Numpad Keybinds 0 Fullscreen 2 Font 18/SmallcapsGlow Map View 76x50 Zoom Use 0% Tactical HUD 1 Map Filters NONE Filters NONE Steam 1 RUN: 97618e1f-0d32-45c0-895a-a161632172c8